fUST/lending_fUST_20250930
["ID","MTS","AMOUNT","RATE_DAILY","PERIOD"]
[388563440,1759243291181,-500.0,0.00020547,2]
[388563441,1759243291214,-198.01441384,0.00020547,2]
[388563442,1759243291246,-500.0,0.00020547,2]
[388563443,1759243291282,-500.0,0.00020547,2]
[388563444,1759243291316,-500.0,0.00020547,2]
[388563445,1759243291352,-500.0,0.00020547,2]
[388563446,1759243291386,-500.0,0.00020547,2]
[388563447,1759243291419,-500.0,0.00020547,2]
[388563449,1759243291451,-500.0,0.00020547,2]
[388563450,1759243291484,-519.41,0.00020547,2]
[388563451,1759243291521,-500.0,0.00020547,2]
[388563452,1759243291555,-582.66134599,0.00020547,2]
[388563453,1759243291590,-500.0,0.00020547,2]
[388563454,1759243291624,-500.0,0.00020547,2]
[388563455,1759243291656,-270.55231141,0.00020547,2]
[388563456,1759243291686,-500.0,0.00020547,2]
[388563457,1759243291716,-338.06386832,0.00020547,2]
[388563458,1759243291746,-500.0,0.00020547,2]
[388563459,1759243291776,-3938.37,0.00020547,2]
[388563460,1759243291812,-500.0,0.00020547,2]
[388563461,1759243291845,-500.0,0.00020547,2]
[388563462,1759243291875,-500.0,0.00020547,2]
[388563463,1759243291905,-772.65,0.00020547,2]
[388563464,1759243291934,-500.0,0.00020547,2]
[388563465,1759243291963,-500.0,0.00020547,2]
[388563466,1759243291993,-500.0,0.00020547,2]
[388563467,1759243292022,-500.0,0.00020547,2]
[388563468,1759243292054,-500.0,0.00020547,2]
[388563469,1759243292083,-500.0,0.00020547,2]
[388563470,1759243292310,-500.0,0.00020547,2]
[388563472,1759243292342,-614.53,0.00020547,2]
[388563473,1759243292372,-912.83,0.00020547,2]
[388563474,1759243292401,-636.66,0.00020547,2]
[388563475,1759243292430,-500.0,0.00020547,2]
[388563476,1759243292458,-707.09,0.00020547,2]
[388563477,1759243292488,-500.0,0.00020547,2]
[388563478,1759243292519,-500.0,0.00020547,2]
[388563479,1759243292549,-519.25,0.00020547,2]
[388563480,1759243292578,-500.0,0.00020547,2]
[388563481,1759243292606,-500.0,0.00020547,2]
[388563482,1759243292635,-500.0,0.00020547,2]
[388563483,1759243292663,-623.93,0.00020547,2]
[388563484,1759243292692,-377.50614601,0.00020547,2]
[388563485,1759243292722,-500.0,0.00020547,2]
[388563486,1759243292752,-500.0,0.00020547,2]
[388563487,1759243292783,-500.0,0.00020547,2]
[388563488,1759243292814,-500.0,0.00020547,2]
[388563489,1759243292845,-500.0,0.00020547,2]
[388563490,1759243292874,-500.0,0.00020547,2]
[388563491,1759243292905,-500.0,0.00020547,2]
[388563492,1759243292933,-500.0,0.00020547,2]
[388563493,1759243292961,-500.0,0.00020547,2]
[388563494,1759243292990,-500.0,0.00020547,2]
[388563495,1759243293020,-973.16,0.00020547,2]
[388563496,1759243293049,-500.0,0.00020547,2]
[388563497,1759243293078,-500.0,0.00020547,2]
[388563498,1759243293107,-500.0,0.00020547,2]
[388563499,1759243293137,-500.0,0.00020547,2]
[388563500,1759243293168,-500.0,0.00020547,2]
[388563501,1759243293198,-685.58,0.00020547,2]
[388563502,1759243293229,-3213.89,0.00020547,2]
[388563503,1759243293258,-500.0,0.00020547,2]
[388563504,1759243293289,-500.0,0.00020547,2]
[388563505,1759243293318,-500.0,0.00020547,2]
[388563506,1759243293347,-3751.52,0.00020547,2]
[388563507,1759243293378,-500.0,0.00020547,2]
[388563508,1759243293409,-617.08,0.00020547,2]
[388563509,1759243293440,-500.0,0.00020547,2]
[388563510,1759243293470,-165.7763068,0.00020548,2]
[388563511,1759243293500,-1123.0,0.00020548,2]
[388563512,1759243293532,-500.0,0.00020548,2]
[388563513,1759243293562,-500.0,0.00020548,2]
[388563514,1759243293592,-410.0,0.00020588,2]
[388563515,1759243293622,-427.919,0.00020588,2]
[388563516,1759243293652,-800.0,0.00020657,2]
[388563517,1759243293681,-1500.0,0.00020668,2]
[388563518,1759243293712,-151.0,0.000208,4]
[388563519,1759243293743,-500.0,0.00020821,2]
[388563520,1759243293774,-500.0,0.00020821,2]
[388563521,1759243293806,-500.0,0.00020821,2]
[388563522,1759243293836,-500.0,0.00020821,2]
[388563523,1759243293865,-296.39882141,0.00020821,2]
[388563524,1759243293896,-616.16257794,0.00020821,2]
[388563525,1759243293929,-500.0,0.00020821,2]
[388563526,1759243293960,-500.0,0.00020821,2]
[388563527,1759243293991,-500.0,0.00020821,2]
[388563528,1759243294022,-500.0,0.00020821,2]
[388563529,1759243294052,-500.0,0.00020821,2]
[388563530,1759243294082,-500.0,0.00020821,2]
[388563531,1759243294111,-500.0,0.00020821,2]
[388563532,1759243294140,-500.0,0.00020821,2]
[388563533,1759243294169,-519.41,0.00020821,2]
[388563534,1759243294198,-457.12015619,0.00020821,2]
[388563535,1759243294227,-500.0,0.00020821,2]
[388563536,1759243294260,-500.0,0.00020821,2]
[388563537,1759243294290,-500.0,0.00020821,2]
[388563538,1759243294323,-220.83237466,0.00020821,2]
[388563539,1759243294353,-3938.37,0.00020821,2]
[388563540,1759243294382,-339.92010359,0.00020821,2]
[388563541,1759243294411,-500.0,0.00020821,2]
[388563542,1759243294443,-500.0,0.00020821,2]
[388563543,1759243294488,-772.65,0.00020821,2]
[388563544,1759243294519,-500.0,0.00020821,2]
[388563545,1759243294549,-500.0,0.00020821,2]
[388563546,1759243294580,-500.0,0.00020821,2]
[388563547,1759243294610,-500.0,0.00020821,2]
[388563548,1759243294641,-500.0,0.00020821,2]
[388563549,1759243294670,-500.0,0.00020821,2]
[388563550,1759243294700,-500.0,0.00020821,2]
[388563551,1759243294731,-614.53,0.00020821,2]
[388563552,1759243294761,-912.83,0.00020821,2]
[388563553,1759243294791,-636.66,0.00020821,2]
[388563554,1759243294819,-707.09,0.00020821,2]
[388563555,1759243294849,-500.0,0.00020821,2]
[388563556,1759243294878,-500.0,0.00020821,2]
[388563557,1759243294908,-500.0,0.00020821,2]
[388563558,1759243294938,-519.25,0.00020821,2]
[388563559,1759243294968,-344.37715295,0.00020821,2]
[388563560,1759243294998,-311.4717638,0.00020821,2]
[388563561,1759243295029,-500.0,0.00020821,2]
[388563562,1759243295059,-623.93,0.00020821,2]
[388563563,1759243295088,-384.17398001,0.00020821,2]
[388563564,1759243295118,-500.0,0.00020821,2]
[388563565,1759243295146,-500.0,0.00020821,2]
[388563566,1759243295176,-500.0,0.00020821,2]
[388563567,1759243295204,-500.0,0.00020821,2]
[388563568,1759243295235,-500.0,0.00020821,2]
[388563569,1759243295268,-420.01730604,0.00020821,2]
[388563570,1759243295305,-500.0,0.00020821,2]
[388563572,1759243295335,-188.14467348,0.00020821,2]
[388563573,1759243295470,-500.0,0.00020821,2]
[388563574,1759243295501,-973.16,0.00020821,2]
[388563575,1759243295532,-500.0,0.00020821,2]
[388563576,1759243295564,-500.0,0.00020821,2]
[388563577,1759243295594,-500.0,0.00020821,2]
[388563579,1759243295624,-500.0,0.00020821,2]
[388563580,1759243295655,-500.0,0.00020821,2]
[388563581,1759243295685,-685.58,0.00020821,2]
[388563582,1759243295717,-3213.89,0.00020821,2]
[388563583,1759243295747,-500.0,0.00020821,2]
[388563584,1759243295781,-500.0,0.00020821,2]
[388563585,1759243295813,-500.0,0.00020821,2]
[388563586,1759243295843,-3751.52,0.00020821,2]
[388563587,1759243295876,-500.0,0.00020821,2]
[388563588,1759243295909,-617.08,0.00020821,2]
[388563589,1759243295943,-500.0,0.00020821,2]
[388563590,1759243295977,-1123.0,0.00020822,2]
[388563591,1759243296008,-568.38220715,0.00020822,2]
[388563592,1759243296040,-500.0,0.00020822,2]
[388563593,1759243296071,-160.0,0.00020896,2]
[388563594,1759243296101,-652.0,0.000209,2]
[388563595,1759243296132,-502.09139712,0.00020916,2]
[388563596,1759243296163,-500.0,0.00020916,2]
[388563597,1759243296192,-500.0,0.00020916,2]
[388563598,1759243296222,-500.0,0.00020916,2]
[388563599,1759243296252,-600.0,0.00020938,2]
[388563600,1759243296284,-500.0,0.00020973,2]
[388563601,1759243296315,-500.0,0.00020973,2]
[388563602,1759243296346,-500.0,0.00020973,2]
[388563603,1759243296378,-2798.7486025,0.00021,5]
[388563604,1759243296410,-3000.0,0.00021,2]
[388563605,1759243296442,-3000.0,0.0002101,2]
[388563606,1759243296481,-3000.0,0.0002102,2]
[388563607,1759243296513,-3000.0,0.0002103,2]
[388563608,1759243296544,-3000.0,0.0002104,2]
[388563609,1759243296575,-3000.0,0.0002105,2]
[388563610,1759243296606,-3000.0,0.0002106,2]
[388563611,1759243296635,-1500.0,0.00021068,2]
[388563612,1759243296665,-1522.29288697,0.00021068,2]
[388563613,1759243296695,-1500.0,0.00021068,2]
[388563614,1759243296726,-1500.0,0.00021068,2]
[388563615,1759243296756,-1500.0,0.00021068,2]
[388563616,1759243296792,-1500.0,0.00021068,2]
[388563617,1759243296823,-1500.0,0.00021068,2]
[388563618,1759243296854,-1630.89369699,0.00021068,2]
[388563619,1759243296886,-1500.0,0.00021068,2]
[388563620,1759243296917,-1500.0,0.00021068,2]
[388563621,1759243296947,-1500.0,0.00021068,2]
[388563622,1759243296976,-3000.0,0.0002107,2]
[388563623,1759243297005,-3000.0,0.0002108,2]
[388563624,1759243297037,-3000.0,0.0002109,2]
[388563625,1759243297066,-500.0,0.00021095,2]
[388563626,1759243297096,-500.0,0.00021095,2]
[388563627,1759243297132,-500.0,0.00021095,2]
[388563628,1759243297162,-500.0,0.00021095,2]
[388563629,1759243297191,-500.0,0.00021095,2]
[388563630,1759243297218,-500.0,0.00021095,2]
[388563631,1759243297247,-500.0,0.00021095,2]
[388563632,1759243297277,-500.0,0.00021095,2]
[388563633,1759243297307,-500.0,0.00021095,2]
[388563634,1759243297337,-470.219369,0.00021095,2]
[388563635,1759243297366,-500.0,0.00021095,2]
[388563636,1759243297399,-151.69151464,0.00021095,2]
[388563637,1759243297430,-519.41,0.00021095,2]
[388563638,1759243297462,-500.0,0.00021095,2]
[388563639,1759243297495,-500.0,0.00021095,2]
[388563640,1759243297528,-500.0,0.00021095,2]
[388563641,1759243297559,-3938.37,0.00021095,2]
[388563642,1759243297590,-500.0,0.00021095,2]
[388563643,1759243297620,-500.0,0.00021095,2]
[388563644,1759243297649,-772.65,0.00021095,2]
[388563645,1759243297679,-500.0,0.00021095,2]
[388563646,1759243297708,-500.0,0.00021095,2]
[388563647,1759243297738,-500.0,0.00021095,2]
[388563648,1759243297768,-500.0,0.00021095,2]
[388563649,1759243297799,-510.79517046,0.00021095,2]
[388563650,1759243297833,-500.0,0.00021095,2]
[388563651,1759243297864,-500.0,0.00021095,2]
[388563652,1759243297894,-614.53,0.00021095,2]
[388563653,1759243297925,-912.83,0.00021095,2]
[388563654,1759243297956,-636.66,0.00021095,2]
[388563655,1759243297984,-707.09,0.00021095,2]
[388563656,1759243298012,-500.0,0.00021095,2]
[388563657,1759243298043,-231.77037904,0.00021095,2]
[388563658,1759243298073,-500.0,0.00021095,2]
[388563659,1759243298103,-519.25,0.00021095,2]
[388563660,1759243298132,-500.0,0.00021095,2]
[388563661,1759243298162,-623.93,0.00021095,2]
[388563662,1759243298193,-500.0,0.00021095,2]
[388563663,1759243298223,-597.12578999,0.00021095,2]
[388563664,1759243298253,-500.0,0.00021095,2]
[388563665,1759243298285,-500.0,0.00021095,2]
[388563666,1759243298315,-500.0,0.00021095,2]
[388563667,1759243298346,-500.0,0.00021095,2]
[388563668,1759243298377,-500.0,0.00021095,2]
[388563669,1759243298409,-973.16,0.00021095,2]
[388563670,1759243298440,-500.0,0.00021095,2]
[388563671,1759243298471,-500.0,0.00021095,2]
[388563672,1759243298502,-500.0,0.00021095,2]
[388563673,1759243298532,-500.0,0.00021095,2]
[388563674,1759243298564,-270.14,0.00021095,2]
[388563675,1759243298594,-685.58,0.00021095,2]
[388563676,1759243298627,-3213.89,0.00021095,2]
[388563677,1759243298763,-500.0,0.00021095,2]
[388563678,1759243298801,-500.0,0.00021095,2]
[388563679,1759243298835,-500.0,0.00021095,2]
[388563680,1759243298869,-3751.52,0.00021095,2]
[388563681,1759243298903,-500.0,0.00021095,2]
[388563682,1759243298937,-617.08,0.00021095,2]
[388563683,1759243298972,-500.0,0.00021095,2]
[388563684,1759243299005,-1123.0,0.00021096,2]
[388563685,1759243299039,-500.0,0.00021096,2]
[388563686,1759243299071,-3000.0,0.000211,2]
[388563687,1759243299102,-3000.0,0.0002111,2]
[388563688,1759243299133,-3000.0,0.0002112,2]
[388563689,1759243299165,-3000.0,0.0002113,2]
[388563690,1759243299196,-3000.0,0.0002114,2]
[388563691,1759243299227,-3000.0,0.0002115,2]
[388563692,1759243299259,-600.0,0.00021156,2]
[388563693,1759243299292,-3000.0,0.0002116,2]
[388563694,1759243299324,-3000.0,0.0002117,2]
[388563695,1759243299356,-3000.0,0.0002118,2]
[388563696,1759243299389,-3000.0,0.0002119,2]
[388563697,1759243299421,-3000.0,0.000212,2]
[388563698,1759243299452,-3000.0,0.0002121,2]
[388563699,1759243299483,-2000.0,0.00021216,2]
[388563700,1759243299515,-3000.0,0.0002122,2]
[388563701,1759243299549,-3000.0,0.0002123,2]
[388563702,1759243299581,-3000.0,0.0002124,2]
[388563703,1759243299612,-3000.0,0.0002125,2]
[388563704,1759243299645,-3000.0,0.0002126,2]
[388563705,1759243299678,-3000.0,0.0002127,2]
[388563706,1759243299709,-3000.0,0.0002128,2]
[388563707,1759243299741,-3000.0,0.0002129,2]
[388563708,1759243299774,-3000.0,0.000213,2]
[388563709,1759243299808,-3000.0,0.0002131,2]
[388563710,1759243299841,-3000.0,0.0002132,2]
[388563711,1759243299871,-3000.0,0.0002133,2]
[388563712,1759243299902,-3000.0,0.0002134,2]
[388563713,1759243299930,-3000.0,0.0002135,2]
[388563714,1759243299960,-3000.0,0.0002136,2]
[388563715,1759243299993,-500.0,0.00021369,2]
[388563716,1759243300026,-500.0,0.00021369,2]
[388563717,1759243300056,-500.0,0.00021369,2]
[388563718,1759243300087,-500.0,0.00021369,2]
[388563719,1759243300117,-500.0,0.00021369,2]
[388563720,1759243300148,-500.0,0.00021369,2]
[388563721,1759243300177,-500.0,0.00021369,2]
[388563722,1759243300206,-500.0,0.00021369,2]
[388563723,1759243300236,-500.0,0.00021369,2]
[388563724,1759243300267,-500.0,0.00021369,2]
[388563725,1759243300300,-519.41,0.00021369,2]
[388563726,1759243300331,-500.0,0.00021369,2]
[388563727,1759243300361,-292.73003463,0.00021369,2]
[388563728,1759243300390,-500.0,0.00021369,2]
[388563729,1759243300420,-3938.37,0.00021369,2]
[388563730,1759243300455,-500.0,0.00021369,2]
[388563731,1759243300485,-457.49593444,0.00021369,2]
[388563732,1759243300516,-772.65,0.00021369,2]
[388563733,1759243300550,-500.0,0.00021369,2]
[388563734,1759243300582,-500.0,0.00021369,2]
[388563735,1759243300612,-500.0,0.00021369,2]
[388563736,1759243300641,-500.0,0.00021369,2]
[388563737,1759243300671,-500.0,0.00021369,2]
[388563738,1759243300702,-500.0,0.00021369,2]
[388563739,1759243300733,-614.53,0.00021369,2]
[388563740,1759243300771,-912.83,0.00021369,2]
[388563741,1759243300804,-636.66,0.00021369,2]
[388563742,1759243300833,-707.09,0.00021369,2]
[388563743,1759243300863,-500.0,0.00021369,2]
[388563744,1759243300893,-627.53410212,0.00021369,2]
[388563745,1759243300923,-519.25,0.00021369,2]
[388563746,1759243300953,-645.03833008,0.00021369,2]
[388563747,1759243300983,-623.93,0.00021369,2]
[388563748,1759243301012,-500.0,0.00021369,2]
[388563749,1759243301045,-500.0,0.00021369,2]
[388563750,1759243301075,-500.0,0.00021369,2]
[388563751,1759243301105,-500.0,0.00021369,2]
[388563752,1759243301134,-500.0,0.00021369,2]
[388563753,1759243301163,-500.0,0.00021369,2]
[388563754,1759243301193,-973.16,0.00021369,2]
[388563755,1759243301222,-500.0,0.00021369,2]
[388563756,1759243301252,-500.0,0.00021369,2]
[388563757,1759243301283,-500.0,0.00021369,2]
[388563758,1759243301314,-500.0,0.00021369,2]
[388563759,1759243301344,-500.0,0.00021369,2]
[388563760,1759243301373,-685.58,0.00021369,2]
[388563761,1759243301404,-3213.89,0.00021369,2]
[388563762,1759243301436,-500.0,0.00021369,2]
[388563763,1759243301467,-500.0,0.00021369,2]
[388563764,1759243301499,-299.89399334,0.00021369,2]
[388563765,1759243301529,-3751.52,0.00021369,2]
[388563766,1759243301560,-332.71,0.00021369,2]
[388563767,1759243301591,-617.08,0.00021369,2]
[388563768,1759243301621,-500.0,0.00021369,2]
[388563769,1759243301651,-1123.0,0.0002137,2]
[388563770,1759243301681,-500.0,0.0002137,2]
[388563771,1759243301709,-3000.0,0.0002137,2]
[388563772,1759243301739,-600.0,0.00021374,2]
[388563773,1759243301769,-3000.0,0.0002138,2]
[388563774,1759243301803,-3000.0,0.0002139,2]
[388563775,1759243301835,-3000.0,0.000214,2]
[388563776,1759243301867,-3000.0,0.0002141,2]
[388563777,1759243301900,-5618.779521,0.0002142,2]
[388563778,1759243301932,-260.0,0.00021444,2]
[388563779,1759243301963,-500.0,0.00021444,2]
[388563780,1759243302097,-1000.0,0.00021464,2]
[388563781,1759243302128,-1000.0,0.00021464,2]
[388563782,1759243302157,-309.00139026,0.00021464,2]
[388563783,1759243302187,-501.04808863,0.00021479,2]
[388563784,1759243302218,-281.32743181,0.000215,2]
[388563785,1759243302248,-272.06870307,0.00021521,2]
[388563786,1759243302277,-1000.0,0.00021521,2]
[388563787,1759243302306,-506.4834272,0.00021521,2]
[388563788,1759243302336,-500.82328615,0.00021531,2]
[388563789,1759243302365,-500.0,0.00021531,2]
[388563790,1759243302395,-502.24569406,0.00021531,2]
[388563791,1759243302423,-500.0,0.00021531,2]
[388563792,1759243302452,-500.0,0.00021531,2]
[388563793,1759243302479,-500.0,0.00021531,2]
[388563794,1759243302506,-500.0,0.00021531,2]
[388563795,1759243302534,-200.0,0.00021531,2]
[388563796,1759243302562,-500.0,0.00021531,2]
[388563797,1759243302592,-200.0,0.00021531,2]
[388563798,1759243302619,-500.0,0.00021531,2]
[388563799,1759243302647,-500.0,0.00021531,2]
[388563800,1759243302676,-509.9967722,0.00021531,2]
[388563801,1759243302703,-200.0,0.00021531,2]
[388563802,1759243302730,-150.4,0.00021531,2]
[388563803,1759243302758,-500.0,0.00021531,2]
[388563804,1759243302790,-500.0,0.00021531,2]
[388563805,1759243302822,-500.0,0.00021531,2]
[388563806,1759243302850,-536.24146867,0.00021531,2]
[388563807,1759243302881,-500.84955038,0.00021531,2]
[388563808,1759243302910,-431.65916564,0.00021531,2]
[388563809,1759243302938,-500.0,0.00021531,2]
[388563810,1759243302967,-500.0,0.00021531,2]
[388563811,1759243302996,-500.0,0.00021531,2]
[388563812,1759243303026,-509.69014316,0.00021531,2]
[388563813,1759243303055,-500.0,0.00021531,2]
[388563814,1759243303084,-500.0,0.00021531,2]
[388563815,1759243303112,-200.4,0.00021531,2]
[388563816,1759243303141,-163.76768888,0.00021531,2]
[388563817,1759243303169,-500.0,0.00021531,2]
[388563818,1759243303198,-176.90904982,0.00021531,2]
[388563819,1759243303225,-200.0,0.00021531,2]
[388563820,1759243303254,-500.0,0.00021531,2]
[388563821,1759243303283,-500.0,0.00021531,2]
[388563822,1759243303310,-175.04491748,0.00021531,2]
[388563823,1759243303340,-500.0,0.00021531,2]
[388563824,1759243303367,-500.0,0.00021531,2]
[388563825,1759243303395,-500.0,0.00021531,2]
[388563826,1759243303422,-500.0,0.00021531,2]
[388563827,1759243303450,-500.0,0.00021531,2]
[388563828,1759243303478,-500.37307646,0.00021531,2]
[388563829,1759243303510,-500.0,0.00021531,2]
[388563830,1759243303541,-500.0,0.00021531,2]
[388563831,1759243303572,-500.0,0.00021531,2]
[388563832,1759243303604,-500.0,0.00021531,2]
[388563833,1759243303634,-500.0,0.00021531,2]
[388563834,1759243303664,-500.62206401,0.00021531,2]
[388563835,1759243303693,-500.0,0.00021531,2]
[388563836,1759243303724,-500.0,0.00021531,2]
[388563837,1759243303753,-500.0,0.00021573,2]
[388563838,1759243303783,-500.0,0.00021573,2]
[388563839,1759243303814,-500.0,0.00021573,2]
[388563840,1759243303844,-500.0,0.00021573,2]
[388563841,1759243303874,-500.0,0.00021573,2]
[388563842,1759243303903,-924.0877888,0.00021592,2]
[388563843,1759243303936,-2000.0,0.00021616,2]
[388563844,1759243303965,-2000.0,0.00021616,2]
[388563845,1759243303996,-2000.0,0.00021616,2]
[388563846,1759243304025,-2000.0,0.00021616,2]
[388563847,1759243304055,-2000.0,0.00021616,2]
[388563848,1759243304083,-2000.0,0.00021616,2]
[388563849,1759243304112,-2000.0,0.00021616,2]
[388563850,1759243304141,-2000.0,0.00021616,2]
[388563851,1759243304171,-864.20367372,0.00021616,2]
[388563852,1759243304200,-500.0,0.00021643,2]
[388563853,1759243304231,-500.0,0.00021643,2]
[388563854,1759243304262,-500.0,0.00021643,2]
[388563855,1759243304293,-641.85203776,0.00021643,2]
[388563856,1759243304322,-500.0,0.00021643,2]
[388563857,1759243304353,-500.0,0.00021643,2]
[388563858,1759243304384,-500.0,0.00021643,2]
[388563859,1759243304417,-500.0,0.00021643,2]
[388563860,1759243304447,-500.0,0.00021643,2]
[388563861,1759243304477,-500.0,0.00021643,2]
[388563862,1759243304508,-519.41,0.00021643,2]
[388563863,1759243304541,-500.0,0.00021643,2]
[388563864,1759243304571,-500.0,0.00021643,2]
[388563865,1759243304603,-3938.37,0.00021643,2]
[388563866,1759243304636,-587.1213072,0.00021643,2]
[388563867,1759243304668,-772.65,0.00021643,2]
[388563868,1759243304700,-372.79972449,0.00021643,2]
[388563869,1759243304731,-500.0,0.00021643,2]
[388563870,1759243304763,-500.0,0.00021643,2]
[388563871,1759243304797,-500.0,0.00021643,2]
[388563872,1759243304833,-500.0,0.00021643,2]
[388563873,1759243304866,-500.0,0.00021643,2]
[388563874,1759243304897,-614.53,0.00021643,2]
[388563875,1759243304928,-912.83,0.00021643,2]
[388563876,1759243304958,-636.66,0.00021643,2]
[388563877,1759243304988,-707.09,0.00021643,2]
[388563878,1759243305021,-500.0,0.00021643,2]
[388563879,1759243305053,-519.25,0.00021643,2]
[388563880,1759243305085,-623.93,0.00021643,2]
[388563881,1759243305115,-500.0,0.00021643,2]
[388563882,1759243305146,-500.0,0.00021643,2]
[388563883,1759243305177,-500.0,0.00021643,2]
[388563884,1759243305208,-442.01612939,0.00021643,2]
[388563885,1759243305239,-500.0,0.00021643,2]
[388563886,1759243305377,-500.0,0.00021643,2]
[388563887,1759243305409,-973.16,0.00021643,2]
[388563888,1759243305440,-500.0,0.00021643,2]
[388563889,1759243305471,-500.0,0.00021643,2]
[388563890,1759243305502,-500.0,0.00021643,2]
[388563891,1759243305532,-500.0,0.00021643,2]
[388563892,1759243305564,-685.58,0.00021643,2]
[388563893,1759243305596,-3213.89,0.00021643,2]
[388563894,1759243305627,-500.0,0.00021643,2]
[388563895,1759243305657,-500.0,0.00021643,2]
[388563896,1759243305686,-3751.52,0.00021643,2]
[388563897,1759243305719,-617.08,0.00021643,2]
[388563898,1759243305750,-500.0,0.00021643,2]
[388563899,1759243305782,-1123.0,0.00021644,2]
[388563900,1759243305814,-500.0,0.00021644,2]
[388563901,1759243305845,-2500.0,0.00021764,2]
[388563902,1759243305876,-304.40653846,0.00021917,2]
[388563903,1759243305908,-500.0,0.00021917,2]
[388563904,1759243305939,-500.0,0.00021917,2]
[388563905,1759243305970,-500.0,0.00021917,2]
[388563906,1759243306001,-500.0,0.00021917,2]
[388563907,1759243306032,-500.0,0.00021917,2]
[388563908,1759243306064,-500.0,0.00021917,2]
[388563909,1759243306096,-500.0,0.00021917,2]
[388563910,1759243306127,-380.88269002,0.00021917,2]
[388563911,1759243306158,-500.0,0.00021917,2]
[388563912,1759243306191,-519.41,0.00021917,2]
[388563913,1759243306222,-500.0,0.00021917,2]
[388563914,1759243306255,-500.0,0.00021917,2]
[388563915,1759243306286,-3938.37,0.00021917,2]
[388563916,1759243306318,-772.65,0.00021917,2]
[388563917,1759243306357,-500.0,0.00021917,2]
[388563918,1759243306389,-500.0,0.00021917,2]
[388563919,1759243306421,-500.0,0.00021917,2]
[388563920,1759243306452,-500.0,0.00021917,2]
[388563921,1759243306485,-500.0,0.00021917,2]
[388563922,1759243306518,-614.53,0.00021917,2]
[388563923,1759243306553,-912.83,0.00021917,2]
[388563924,1759243306587,-636.66,0.00021917,2]
[388563925,1759243306620,-707.09,0.00021917,2]
[388563926,1759243306651,-500.0,0.00021917,2]
[388563927,1759243306684,-519.25,0.00021917,2]
[388563928,1759243306716,-623.93,0.00021917,2]
[388563929,1759243306748,-500.0,0.00021917,2]
[388563930,1759243306780,-500.0,0.00021917,2]
[388563931,1759243306815,-500.0,0.00021917,2]
[388563932,1759243306849,-500.0,0.00021917,2]
[388563933,1759243306884,-500.0,0.00021917,2]
[388563934,1759243306916,-500.0,0.00021917,2]
[388563935,1759243306947,-500.0,0.00021917,2]
[388563936,1759243306977,-500.0,0.00021917,2]
[388563937,1759243307008,-500.0,0.00021917,2]
[388563938,1759243307040,-500.0,0.00021917,2]
[388563939,1759243307070,-500.0,0.00021917,2]
[388563940,1759243307101,-453.31677222,0.00021917,2]
[388563941,1759243307133,-500.0,0.00021917,2]
[388563942,1759243307164,-500.0,0.00021917,2]
[388563943,1759243307196,-500.0,0.00021917,2]